fUST/lending_fUST_20250216
["ID","MTS","AMOUNT","RATE_DAILY","PERIOD"]
[353218810,1739664633306,-500.0,8.865e-05,2]
[353218811,1739664633316,-668.93,8.865e-05,2]
[353218812,1739664633326,-500.0,8.865e-05,2]
[353218813,1739664633335,-440.76142135,8.865e-05,2]
[353218814,1739664633346,-503.00051377,8.865e-05,2]
[353218815,1739664633356,-500.0,8.865e-05,2]
[353218816,1739664633366,-502.9965774,8.865e-05,2]
[353218817,1739664633376,-500.0,8.865e-05,2]
[353218818,1739664633385,-500.0,8.865e-05,2]
[353218819,1739664633394,-500.0,8.865e-05,2]
[353218820,1739664633404,-500.0,8.865e-05,2]
[353218821,1739664633413,-653.87,8.865e-05,2]
[353218822,1739664633423,-653.87,8.865e-05,2]
[353218823,1739664633433,-500.0,8.865e-05,2]
[353218824,1739664633443,-500.0,8.865e-05,2]
[353218825,1739664633453,-500.0,8.865e-05,2]
[353218826,1739664633463,-500.0,8.865e-05,2]
[353218827,1739664633472,-500.0,8.865e-05,2]
[353218828,1739664633482,-128.80457834,8.865e-05,2]
[353218829,1739664633496,-371.19542166,8.865e-05,2]
[353218830,1739664633506,-500.0,8.865e-05,2]
[353218831,1739664633515,-500.0,8.865e-05,2]
[353218832,1739664633525,-500.0,8.865e-05,2]
[353218833,1739664633535,-500.0,8.865e-05,2]
[353218834,1739664633545,-500.0,8.865e-05,2]
[353218835,1739664633555,-500.0,8.865e-05,2]
[353218836,1739664633564,-500.0,8.865e-05,2]
[353218837,1739664633573,-500.0,8.865e-05,2]
[353218838,1739664633583,-500.0,8.865e-05,2]
[353218839,1739664633593,-500.0,8.865e-05,2]
[353218840,1739664633604,-500.0,8.865e-05,2]
[353218841,1739664633614,-500.0,8.865e-05,2]
[353218842,1739664633624,-500.0,8.865e-05,2]
[353218843,1739664633634,-500.0,8.865e-05,2]
[353218844,1739664633644,-500.0,8.865e-05,2]
[353218845,1739664633653,-128.82766598,8.865e-05,2]
[353218847,1739664638079,-371.17233402,8.865e-05,2]
[353218848,1739664638088,-498.51434791,8.865e-05,2]
[353218849,1739664638098,-500.0,8.865e-05,2]
[353218850,1739664638108,-500.0,8.865e-05,2]
[353218851,1739664638117,-500.0,8.865e-05,2]
[353218852,1739664638127,-500.0,8.865e-05,2]
[353218853,1739664638137,-500.0,8.865e-05,2]
[353218854,1739664638146,-500.0,8.865e-05,2]
[353218855,1739664638155,-500.0,8.865e-05,2]
[353218856,1739664638165,-500.0,8.865e-05,2]
[353218857,1739664638174,-500.0,8.865e-05,2]
[353218858,1739664638183,-500.0,8.865e-05,2]
[353218859,1739664638192,-500.0,8.865e-05,2]
[353218860,1739664638201,-346.41563711,8.865e-05,2]
[353218873,1739664641366,-157.71052907,8.865e-05,2]
[353218874,1739664641376,-323.95541413,8.865e-05,2]
[353218875,1739664641391,-176.04458587,8.865e-05,2]
[353218876,1739664641400,-500.0,8.865e-05,2]
[353218877,1739664641410,-500.0,8.865e-05,2]
[353218878,1739664641419,-531.85326901,8.865e-05,2]
[353218879,1739664641429,-775.29,8.865e-05,2]
[353218880,1739664641439,-500.0,8.865e-05,2]
[353218881,1739664641449,-1855.01,8.865e-05,2]
[353218882,1739664641458,-501.22156388,8.865e-05,2]
[353218883,1739664641468,-500.0,8.865e-05,2]
[353218884,1739664641477,-500.0,8.865e-05,2]
[353218885,1739664641487,-500.0,8.865e-05,2]
[353218886,1739664641496,-500.0,8.865e-05,2]
[353218887,1739664641505,-500.0,8.865e-05,2]
[353218888,1739664641514,-500.0,8.865e-05,2]
[353218889,1739664641524,-250.0,8.865e-05,2]
[353218890,1739664641533,-500.0,8.865e-05,2]
[353218891,1739664641543,-513.24488152,8.865e-05,2]
[353218892,1739664641553,-919.43,8.865e-05,2]
[353218893,1739664641562,-500.0,8.865e-05,2]
[353218894,1739664641572,-586.09,8.865e-05,2]
[353218895,1739664641581,-500.0,8.865e-05,2]
[353218896,1739664641591,-896.98705267,8.865e-05,2]
[353218897,1739664641603,-215.67294733,8.865e-05,2]
[353218898,1739664641612,-720.04,8.865e-05,2]
[353218899,1739664641622,-500.0,8.865e-05,2]
[353218900,1739664641631,-599.89582323,8.865e-05,2]
[353218901,1739664641640,-772.49122942,8.865e-05,2]
[353218906,1739664643258,-401.21877058,8.865e-05,2]
[353218907,1739664643268,-500.0,8.865e-05,2]
[353218908,1739664643278,-500.0,8.865e-05,2]
[353218909,1739664643287,-286.28122942,8.865e-05,2]
[353218910,1739664643316,-221.52993748,8.865e-05,2]
[353218911,1739664643326,-500.0,8.865e-05,2]
[353218912,1739664643335,-869.1,8.865e-05,2]
[353218913,1739664643348,-500.0,8.865e-05,2]
[353218914,1739664643359,-500.0,8.865e-05,2]
[353218915,1739664643369,-500.0,8.865e-05,2]
[353218916,1739664643379,-1029.7,8.865e-05,2]
[353218917,1739664643388,-500.0,8.865e-05,2]
[353218918,1739664643398,-3559.37950633,8.865e-05,2]
[353218923,1739664688758,168.28909485,8.575e-05,2]
[353218933,1739665401252,1000.00000001,0.00019,120]
[353218971,1739665832571,-286.75,8.861e-05,2]
[353218972,1739665832684,-656.77,8.861e-05,2]
[353218973,1739665832695,-500.0,8.861e-05,2]
[353218974,1739665832705,-300.0,8.861e-05,2]
[353218975,1739665832715,-500.0,8.861e-05,2]
[353218976,1739665832724,-500.0,8.861e-05,2]
[353218977,1739665832734,-500.0,8.861e-05,2]
[353218978,1739665832744,-500.0,8.861e-05,2]
[353218979,1739665832754,-500.0,8.862e-05,2]
[353218980,1739665832763,-1278.72,8.862e-05,2]
[353218981,1739665832773,-500.0,8.862e-05,2]
[353218982,1739665832782,-2885.89,8.862e-05,2]
[353218983,1739665832795,-564.64,8.862e-05,2]
[353218984,1739665832804,-500.0,8.862e-05,2]
[353218985,1739665832814,-650.98,8.862e-05,2]
[353218986,1739665832823,-650.98,8.862e-05,2]
[353218987,1739665832833,-650.98,8.862e-05,2]
[353218988,1739665832843,-500.0,8.862e-05,2]
[353218989,1739665832853,-1197.72,8.862e-05,2]
[353218990,1739665832872,-556.97171139,8.862e-05,2]
[353218991,1739665832891,-500.0,8.862e-05,2]
[353218992,1739665832904,-241.89254365,8.862e-05,2]
[353218993,1739665832919,-500.0,8.862e-05,2]
[353218994,1739665832936,-500.0,8.862e-05,2]
[353218995,1739665832950,-399.39812613,8.862e-05,2]
[353218996,1739665832967,-500.0,8.862e-05,2]
[353218997,1739665832984,-500.0,8.862e-05,2]
[353218998,1739665832999,-500.0,8.862e-05,2]
[353218999,1739665833014,-500.0,8.862e-05,2]
[353219000,1739665833028,-500.0,8.862e-05,2]
[353219001,1739665833044,-163.46130993,8.862e-05,2]
[353219002,1739665833061,-500.0,8.862e-05,2]
[353219003,1739665833073,-1798.57,8.862e-05,2]
[353219004,1739665833087,-500.0,8.862e-05,2]
[353219005,1739665833103,-1087.14,8.862e-05,2]
[353219006,1739665833119,-1007.63,8.862e-05,2]
[353219007,1739665833134,-4414.66,8.862e-05,2]
[353219008,1739665833152,-500.0,8.862e-05,2]
[353219009,1739665833168,-500.0,8.862e-05,2]
[353219010,1739665833181,-500.0,8.862e-05,2]
[353219011,1739665833194,-1546.68,8.862e-05,2]
[353219012,1739665833209,-500.0,8.862e-05,2]
[353219013,1739665833226,-737.59,8.862e-05,2]
[353219014,1739665833238,-500.0,8.862e-05,2]
[353219015,1739665833251,-2001.7,8.862e-05,2]
[353219016,1739665833267,-2209.82,8.862e-05,2]
[353219017,1739665833280,-500.0,8.862e-05,2]
[353219018,1739665833291,-3608.45,8.862e-05,2]
[353219019,1739665833304,-500.0,8.862e-05,2]
[353219020,1739665833321,-500.0,8.862e-05,2]
[353219021,1739665833335,-500.0,8.862e-05,2]
[353219022,1739665833348,-689.18,8.862e-05,2]
[353219023,1739665833361,-500.0,8.862e-05,2]
[353219024,1739665833377,-500.0,8.863e-05,2]
[353219025,1739665833391,-500.0,8.863e-05,2]
[353219026,1739665833404,-500.0,8.863e-05,2]
[353219027,1739665833417,-156.27045151,8.863e-05,2]
[353219028,1739665833430,-500.0,8.863e-05,2]
[353219029,1739665833443,-603.59427457,8.863e-05,2]
[353219030,1739665833457,-500.0,8.863e-05,2]
[353219031,1739665833470,-500.0,8.863e-05,2]
[353219032,1739665833483,-221.65742302,8.863e-05,2]
[353219033,1739665833497,-214.04,8.863e-05,2]
[353219034,1739665833510,-500.0,8.863e-05,2]
[353219035,1739665833524,-500.0,8.863e-05,2]
[353219036,1739665833537,-500.0,8.863e-05,2]
[353219037,1739665833551,-500.0,8.863e-05,2]
[353219038,1739665833564,-500.0,8.863e-05,2]
[353219039,1739665833577,-500.0,8.863e-05,2]
[353219040,1739665833590,-500.0,8.863e-05,2]
[353219041,1739665833603,-500.0,8.863e-05,2]
[353219042,1739665833617,-500.0,8.863e-05,2]
[353219043,1739665833630,-500.0,8.863e-05,2]
[353219044,1739665833644,-500.0,8.863e-05,2]
[353219045,1739665833658,-558.63,8.863e-05,2]
[353219046,1739665833671,-500.0,8.863e-05,2]
[353219047,1739665833684,-654.87,8.863e-05,2]
[353219048,1739665833698,-500.0,8.863e-05,2]
[353219049,1739665833711,-500.0,8.863e-05,2]
[353219050,1739665833724,-500.0,8.863e-05,2]
[353219051,1739665833737,-500.0,8.863e-05,2]
[353219052,1739665833750,-500.0,8.863e-05,2]
[353219053,1739665833764,-500.0,8.863e-05,2]
[353219054,1739665833778,-500.0,8.863e-05,2]
[353219055,1739665833795,-500.0,8.863e-05,2]
[353219056,1739665833809,-500.0,8.863e-05,2]
[353219057,1739665833823,-500.0,8.863e-05,2]
[353219058,1739665833837,-500.0,8.863e-05,2]
[353219059,1739665833850,-500.0,8.863e-05,2]
[353219060,1739665833863,-508.88796431,8.863e-05,2]
[353219061,1739665833879,-500.0,8.863e-05,2]
[353219062,1739665833894,-500.0,8.863e-05,2]
[353219063,1739665833908,-500.0,8.863e-05,2]
[353219064,1739665833923,-500.0,8.863e-05,2]
[353219065,1739665833938,-500.0,8.863e-05,2]
[353219066,1739665833951,-500.0,8.863e-05,2]
[353219067,1739665833962,-500.0,8.863e-05,2]
[353219068,1739665834175,-875.7,8.863e-05,2]
[353219069,1739665834200,-394.71676488,8.863e-05,2]
[353219070,1739665834211,-500.0,8.863e-05,2]
[353219071,1739665834220,-500.0,8.863e-05,2]
[353219072,1739665834230,-792.12,8.863e-05,2]
[353219073,1739665834239,-500.0,8.863e-05,2]
[353219074,1739665834249,-769.27,8.863e-05,2]
[353219075,1739665834259,-500.0,8.863e-05,2]
[353219076,1739665834268,-500.0,8.863e-05,2]
[353219077,1739665834278,-563.27794638,8.863e-05,2]
[353219078,1739665834287,-500.0,8.863e-05,2]
[353219079,1739665834297,-500.0,8.863e-05,2]
[353219080,1739665834307,-500.0,8.863e-05,2]
[353219081,1739665834316,-500.0,8.863e-05,2]
[353219082,1739665834326,-500.0,8.863e-05,2]
[353219083,1739665834336,-500.0,8.863e-05,2]
[353219084,1739665834346,-500.0,8.863e-05,2]
[353219085,1739665834356,-500.0,8.863e-05,2]
[353219086,1739665834367,-500.0,8.863e-05,2]
[353219087,1739665834377,-1274.51,8.863e-05,2]
[353219088,1739665834386,-500.0,8.863e-05,2]
[353219089,1739665834396,-500.0,8.863e-05,2]
[353219090,1739665834406,-805.58,8.863e-05,2]
[353219091,1739665834415,-500.0,8.863e-05,2]
[353219092,1739665834425,-500.0,8.863e-05,2]
[353219093,1739665834434,-500.0,8.863e-05,2]
[353219094,1739665834444,-500.0,8.863e-05,2]
[353219095,1739665834454,-575.49018478,8.863e-05,2]
[353219096,1739665834464,-500.0,8.863e-05,2]
[353219097,1739665834473,-500.0,8.863e-05,2]
[353219098,1739665834482,-500.0,8.863e-05,2]
[353219099,1739665834492,-500.0,8.863e-05,2]
[353219100,1739665834501,-500.0,8.863e-05,2]
[353219101,1739665834510,-548.40982576,8.863e-05,2]
[353219102,1739665834520,-500.0,8.863e-05,2]
[353219103,1739665834530,-500.0,8.863e-05,2]
[353219104,1739665834539,-500.0,8.863e-05,2]
[353219105,1739665834549,-785.46,8.863e-05,2]
[353219106,1739665834558,-832.88,8.863e-05,2]
[353219107,1739665834568,-690.04,8.863e-05,2]
[353219108,1739665834577,-1000.0,8.863e-05,2]
[353219109,1739665834587,-500.0,8.863e-05,2]
[353219110,1739665834596,-500.0,8.863e-05,2]
[353219111,1739665834606,-500.0,8.863e-05,2]
[353219112,1739665834615,-500.0,8.863e-05,2]
[353219113,1739665834625,-500.0,8.863e-05,2]
[353219114,1739665834635,-500.0,8.863e-05,2]
[353219115,1739665834645,-500.0,8.863e-05,2]
[353219116,1739665834654,-500.0,8.863e-05,2]
[353219117,1739665834664,-500.0,8.863e-05,2]
[353219118,1739665834674,-500.0,8.863e-05,2]
[353219119,1739665834684,-500.0,8.863e-05,2]
[353219120,1739665834693,-500.0,8.863e-05,2]
[353219121,1739665834703,-500.0,8.863e-05,2]
[353219122,1739665834713,-500.0,8.863e-05,2]
[353219123,1739665834723,-500.0,8.863e-05,2]
[353219124,1739665834732,-502.75991926,8.863e-05,2]
[353219125,1739665834742,-502.45778128,8.863e-05,2]
[353219126,1739665834752,-500.0,8.863e-05,2]
[353219127,1739665834762,-500.0,8.863e-05,2]
[353219128,1739665834771,-581.82,8.863e-05,2]
[353219129,1739665834781,-500.0,8.863e-05,2]
[353219130,1739665834793,-500.0,8.863e-05,2]
[353219131,1739665834804,-1269.34,8.863e-05,2]
[353219132,1739665834814,-500.0,8.863e-05,2]
[353219133,1739665834824,-500.0,8.863e-05,2]
[353219134,1739665834835,-1000.48,8.863e-05,2]
[353219135,1739665834845,-507.28860229,8.863e-05,2]
[353219136,1739665834855,-500.0,8.863e-05,2]
[353219137,1739665834864,-500.0,8.863e-05,2]
[353219138,1739665834877,-500.0,8.863e-05,2]
[353219139,1739665834887,-500.0,8.863e-05,2]
[353219140,1739665834897,-501.96388742,8.863e-05,2]
[353219141,1739665834907,-500.0,8.863e-05,2]
[353219142,1739665834917,-500.0,8.863e-05,2]
[353219143,1739665834927,-295.41982508,8.863e-05,2]
[353219144,1739665834937,-500.0,8.863e-05,2]
[353219145,1739665834947,-500.0,8.863e-05,2]
[353219146,1739665834956,-500.0,8.863e-05,2]
[353219147,1739665834966,-500.0,8.863e-05,2]
[353219148,1739665834975,-500.0,8.863e-05,2]
[353219149,1739665834984,-746.43,8.863e-05,2]
[353219150,1739665834994,-500.0,8.863e-05,2]
[353219151,1739665835004,-482.64464465,8.863e-05,2]
[353219152,1739665835014,-500.0,8.863e-05,2]
[353219153,1739665835023,-616.71976011,8.863e-05,2]
[353219154,1739665835033,-500.0,8.863e-05,2]
[353219155,1739665835043,-500.0,8.863e-05,2]
[353219156,1739665835053,-511.02161474,8.863e-05,2]
[353219157,1739665835063,-425.2021342,8.863e-05,2]
[353219158,1739665835073,-500.0,8.863e-05,2]
[353219159,1739665835083,-500.0,8.863e-05,2]
[353219160,1739665835093,-500.0,8.863e-05,2]
[353219161,1739665835103,-500.0,8.863e-05,2]
[353219162,1739665835113,-500.0,8.863e-05,2]
[353219163,1739665835125,-500.0,8.863e-05,2]
[353219164,1739665835135,-500.0,8.863e-05,2]
[353219165,1739665835144,-500.0,8.863e-05,2]
[353219166,1739665835153,-500.0,8.863e-05,2]
[353219167,1739665835162,-500.0,8.863e-05,2]
[353219168,1739665835172,-500.5080966,8.863e-05,2]
[353219169,1739665835181,-883.64,8.863e-05,2]
[353219170,1739665835191,-500.0,8.863e-05,2]
[353219171,1739665835200,-500.0,8.863e-05,2]
[353219172,1739665835210,-500.0,8.863e-05,2]
[353219173,1739665835219,-500.0,8.863e-05,2]
[353219174,1739665835229,-2722.2,8.863e-05,2]
[353219175,1739665835239,-500.0,8.863e-05,2]
[353219176,1739665835248,-509.78108522,8.863e-05,2]
[353219177,1739665835257,-500.0,8.863e-05,2]
[353219178,1739665835267,-615.6,8.863e-05,2]
[353219179,1739665835276,-1390.23,8.863e-05,2]
[353219180,1739665835286,-500.0,8.863e-05,2]
[353219181,1739665835296,-500.0,8.863e-05,2]
[353219182,1739665835305,-1116.40925135,8.863e-05,2]
[353219201,1739665838230,-2.03074865,8.863e-05,2]
[353219203,1739665838240,-576.86667353,8.863e-05,2]
[353219205,1739665838251,-500.0,8.863e-05,2]
[353219207,1739665838260,-747.38,8.863e-05,2]
[353219209,1739665838270,-500.0,8.863e-05,2]
[353219211,1739665838280,-413.46866442,8.863e-05,2]
[353219418,1739665840613,-760.63739624,8.862e-05,2]
[353219439,1739665843359,-1848.13260376,8.862e-05,2]
[353219440,1739665843369,-86.53133558,8.863e-05,2]
[353219441,1739665843382,-16.53126836,8.863e-05,2]
[353219725,1739665881043,190.3028769,0.00019,120]
[353219726,1739666130768,160.0,0.00018342,120]
[353219727,1739666155480,168.23651707,8.575e-05,2]
[353219728,1739666191467,160.0,0.00017116,120]
[353219730,1739666489412,1000.0,8.727e-05,2]
[353219731,1739666489449,1000.0,8.805e-05,2]
[353219732,1739666489484,1000.0,8.794e-05,2]
[353219733,1739666489536,1000.0,8.64e-05,2]
[353219734,1739666489593,1000.0,8.623e-05,2]
[353219735,1739666520573,239.2483509,8.779e-05,2]
[353219736,1739666525021,168.23651707,8.575e-05,2]
[353219737,1739666545575,1000.0,8.766e-05,2]
[353219738,1739666565612,159.4989006,8.779e-05,2]
[353219739,1739666577512,1000.0,8.709e-05,2]
[353219740,1739666610565,159.4989007,8.779e-05,2]
[353219741,1739666641183,1000.0,8.803e-05,2]
[353219742,1739666641386,1000.0,8.679e-05,2]
[353219743,1739666700539,159.4989007,8.779e-05,2]
[353219744,1739666751976,1515.40696902,8e-05,2]
[353219745,1739666763450,300.0,8.843e-05,2]
[353219746,1739666822400,300.0,8.843e-05,2]
[353219747,1739666882805,300.0,8.843e-05,2]
[353219799,1739667032644,-158.61,8.844e-05,2]
[353219801,1739667032654,-349.0,8.844e-05,2]
[353219803,1739667032664,-314.0,8.844e-05,2]
[353219805,1739667032673,-349.0,8.844e-05,2]
[353219807,1739667032683,-314.0,8.844e-05,2]
[353219809,1739667032693,-314.0,8.844e-05,2]
[353219811,1739667032704,-349.0,8.844e-05,2]
[353219813,1739667032714,-314.0,8.844e-05,2]
[353219815,1739667032723,-349.0,8.844e-05,2]
[353219817,1739667032733,-314.0,8.844e-05,2]
[353219819,1739667032742,-349.0,8.844e-05,2]
[353219821,1739667032752,-314.0,8.844e-05,2]
[353219823,1739667032761,-349.0,8.844e-05,2]
[353219825,1739667032771,-314.0,8.844e-05,2]
[353219827,1739667032780,-349.0,8.844e-05,2]
[353219829,1739667032789,-314.0,8.844e-05,2]
[353219831,1739667032799,-349.0,8.844e-05,2]
[353219833,1739667032808,-314.0,8.844e-05,2]
[353219835,1739667032817,-349.0,8.844e-05,2]
[353219837,1739667032827,-314.0,8.844e-05,2]
[353219840,1739667032837,-349.0,8.844e-05,2]
[353219841,1739667032846,-314.0,8.844e-05,2]
[353219843,1739667032856,-349.0,8.844e-05,2]
[353219845,1739667032865,-314.0,8.844e-05,2]
[353219847,1739667032874,-349.0,8.844e-05,2]
[353219850,1739667032884,-349.0,8.844e-05,2]
[353219852,1739667032893,-314.0,8.844e-05,2]
[353219854,1739667032903,-155.92110335,8.844e-05,2]
[353219856,1739667032915,-193.07889665,8.844e-05,2]
[353219858,1739667032924,-109.63722854,8.844e-05,2]
[353219860,1739667032935,-204.36277146,8.844e-05,2]
[353219862,1739667032945,-349.0,8.844e-05,2]
[353219864,1739667032954,-314.0,8.844e-05,2]
[353219866,1739667032964,-349.0,8.844e-05,2]
[353219868,1739667032974,-314.0,8.844e-05,2]
[353219870,1739667032983,-349.0,8.844e-05,2]
[353219872,1739667032992,-314.0,8.844e-05,2]
[353219874,1739667033002,-349.0,8.844e-05,2]
[353219876,1739667033011,-314.0,8.844e-05,2]
[353219878,1739667033020,-349.0,8.844e-05,2]
[353219880,1739667033030,-314.0,8.844e-05,2]
[353219882,1739667033040,-349.0,8.844e-05,2]
[353219884,1739667033049,-236.87,8.844e-05,2]
[353219886,1739667033059,-349.0,8.844e-05,2]
[353219888,1739667033070,-349.0,8.844e-05,2]
[353219890,1739667033080,-349.0,8.844e-05,2]
[353219892,1739667033090,-349.0,8.844e-05,2]
[353219894,1739667033099,-349.0,8.844e-05,2]
[353219896,1739667033109,-349.0,8.844e-05,2]
[353219898,1739667033119,-349.0,8.844e-05,2]
[353219900,1739667033129,-349.0,8.844e-05,2]
[353219902,1739667033138,-397.05,8.844e-05,2]
[353219904,1739667033151,-2043.4,8.858e-05,2]
[353219906,1739667033162,-500.0,8.858e-05,2]
[353219908,1739667033172,-500.0,8.858e-05,2]
[353219910,1739667033182,-500.0,8.858e-05,2]
[353219912,1739667033191,-500.0,8.859e-05,2]
[353219914,1739667033201,-500.0,8.859e-05,2]
[353219916,1739667033211,-500.0,8.859e-05,2]
[353219918,1739667033221,-500.0,8.859e-05,2]
[353219920,1739667033234,-500.0,8.859e-05,2]
[353219922,1739667033243,-500.0,8.859e-05,2]
[353219924,1739667033253,-500.0,8.859e-05,2]
[353219926,1739667033263,-500.0,8.859e-05,2]
[353219928,1739667033274,-500.0,8.859e-05,2]
[353219930,1739667033284,-503.15110495,8.859e-05,2]
[353219932,1739667033293,-500.0,8.859e-05,2]
[353219934,1739667033303,-500.0,8.859e-05,2]
[353219937,1739667033314,-500.0,8.859e-05,2]
[353219939,1739667033324,-238.0478117,8.859e-05,2]
[353219941,1739667033333,-500.0,8.859e-05,2]
[353219943,1739667033343,-482.9754657,8.859e-05,2]
[353219945,1739667033353,-500.0,8.859e-05,2]
[353219946,1739667033364,-500.0,8.859e-05,2]
[353219948,1739667033374,-512.66413506,8.859e-05,2]
[353219951,1739667033385,-500.0,8.859e-05,2]
[353219952,1739667033394,-500.0,8.859e-05,2]
[353219954,1739667033404,-500.0,8.859e-05,2]
[353219957,1739667033415,-1440.72,8.859e-05,2]
[353219959,1739667033425,-500.0,8.859e-05,2]
[353219961,1739667033435,-500.0,8.859e-05,2]
[353219963,1739667033445,-500.0,8.859e-05,2]
[353219965,1739667033454,-3020.46,8.859e-05,2]
[353219967,1739667033465,-500.0,8.859e-05,2]
[353219969,1739667033475,-500.0,8.859e-05,2]
[353219971,1739667033485,-500.0,8.859e-05,2]
[353219973,1739667033494,-500.0,8.859e-05,2]
[353219975,1739667033505,-500.0,8.859e-05,2]
[353219977,1739667033515,-500.0,8.859e-05,2]
[353219979,1739667033525,-493.24649263,8.859e-05,2]
[353219980,1739667033535,-500.0,8.859e-05,2]
[353219981,1739667033545,-500.0,8.859e-05,2]
[353219983,1739667033555,-500.0,8.859e-05,2]
[353219985,1739667033564,-500.0,8.859e-05,2]
[353219987,1739667033574,-500.0,8.859e-05,2]
[353219989,1739667033584,-500.0,8.859e-05,2]
[353219991,1739667033593,-500.0,8.859e-05,2]
[353219993,1739667033604,-500.0,8.859e-05,2]
[353219995,1739667033613,-500.0,8.859e-05,2]
[353219997,1739667033623,-500.0,8.859e-05,2]
[353219999,1739667033632,-500.0,8.859e-05,2]
[353220000,1739667033643,-500.0,8.859e-05,2]
[353220002,1739667033652,-430.75687463,8.859e-05,2]
[353220004,1739667033662,-569.61,8.859e-05,2]
[353220006,1739667033671,-500.0,8.859e-05,2]
[353220008,1739667033680,-500.0,8.859e-05,2]
[353220010,1739667033690,-607.3842335,8.859e-05,2]
[353220012,1739667033699,-500.0,8.859e-05,2]
[353220014,1739667033709,-500.0,8.859e-05,2]
[353220016,1739667033718,-500.0,8.859e-05,2]
[353220018,1739667033728,-500.0,8.859e-05,2]
[353220020,1739667033737,-500.0,8.859e-05,2]
[353220022,1739667033747,-500.0,8.859e-05,2]
[353220025,1739667033758,-500.0,8.859e-05,2]
[353220027,1739667033768,-360.37966194,8.859e-05,2]
[353220028,1739667033777,-178.54144843,8.859e-05,2]
[353220031,1739667033791,-431.3856041,8.859e-05,2]
[353220033,1739667033801,-500.0,8.859e-05,2]
[353220035,1739667033811,-500.0,8.859e-05,2]
[353220037,1739667033821,-500.0,8.859e-05,2]
[353220039,1739667033830,-500.0,8.859e-05,2]
[353220041,1739667033840,-150.12808639,8.859e-05,2]
[353220043,1739667033850,-369.10879852,8.859e-05,2]
[353220045,1739667033859,-500.0,8.859e-05,2]
[353220047,1739667033869,-1870.45,8.859e-05,2]
[353220049,1739667033878,-636.1565751,8.859e-05,2]
[353220338,1739667038626,-1380.69,8.858e-05,2]
[353220340,1739667038636,-468.1834249,8.859e-05,2]
[353220342,1739667038645,-500.0,8.859e-05,2]
[353220344,1739667038655,-500.0,8.859e-05,2]
[353220346,1739667038664,-500.0,8.859e-05,2]
[353220348,1739667038673,-367.37080808,8.859e-05,2]
[353220351,1739667038683,-500.0,8.859e-05,2]
[353220353,1739667038693,-500.0,8.859e-05,2]
[353220354,1739667038702,-180.17065856,8.859e-05,2]
[353220356,1739667038712,-1047.51,8.859e-05,2]
[353220359,1739667038721,-500.0,8.859e-05,2]
[353220361,1739667038731,-4500.94,8.859e-05,2]
[353220363,1739667038741,-535.35,8.859e-05,2]
[353220365,1739667038750,-500.0,8.859e-05,2]
[353220367,1739667038760,-500.0,8.859e-05,2]
[353220369,1739667038769,-627.58,8.859e-05,2]
[353220370,1739667038779,-500.6529492,8.859e-05,2]
[353220371,1739667038788,-1590.87,8.859e-05,2]
[353220372,1739667038798,-1981.92,8.859e-05,2]
[353220373,1739667038807,-283.77913638,8.859e-05,2]
[353220374,1739667038817,-500.0,8.859e-05,2]
[353220375,1739667038826,-769.35,8.859e-05,2]
[353220376,1739667038836,-600.0,8.859e-05,2]
[353220377,1739667038845,-2289.04,8.859e-05,2]
[353220378,1739667038854,-660.46,8.859e-05,2]
[353220379,1739667038863,-2418.03619742,8.859e-05,2]
[353220380,1739667038875,-1187.91380258,8.859e-05,2]
[353220381,1739667038884,-500.0,8.859e-05,2]
[353220382,1739667038894,-500.0,8.859e-05,2]
[353220383,1739667038903,-184.08633692,8.859e-05,2]
[353220399,1739667040502,-315.91366308,8.859e-05,2]
[353220401,1739667040512,-500.0,8.859e-05,2]
[353220403,1739667040521,-823.43,8.859e-05,2]
[353220405,1739667040531,-2754.86,8.859e-05,2]
[353220407,1739667040540,-860.05,8.86e-05,2]
[353220409,1739667040550,-781.35,8.86e-05,2]